[Event "*** Titled Tuesday Blitz"]
[Site "Chess.com"]
[Date "2021.03.30"]
[Round "5"]
[White "xurramid77"]
[Black "Alexander_Zubov"]
[Result "1/2-1/2"]
[WhiteElo "2654"]
[BlackElo "2970"]
[TimeControl "180+1"]
[EndTime "10:54:15 PDT"]
[Termination "Game drawn by agreement"]

1. e4 {[%clk 0:03:00.9]} 1... c5 {[%clk 0:02:57.7]} 2. c3 {[%clk 0:03:01.1]}
2... Nf6 {[%clk 0:02:56.9]} 3. e5 {[%clk 0:03:01.6]} 3... Nd5 {[%clk 0:02:57.1]}
4. Bc4 {[%clk 0:03:02.4]} 4... e6 {[%clk 0:02:56.7]} 5. Nf3 {[%clk 0:03:02.3]}
5... d6 {[%clk 0:02:55.7]} 6. exd6 {[%clk 0:03:02.2]} 6... Bxd6 {[%clk 0:02:54]}
7. d4 {[%clk 0:03:02.6]} 7... O-O {[%clk 0:02:52.4]} 8. dxc5 {[%clk 0:03:02.8]}
8... Bxc5 {[%clk 0:02:52.3]} 9. O-O {[%clk 0:03:03.5]} 9... Nf6 {[%clk
0:02:34.3]} 10. Qe2 {[%clk 0:03:01.7]} 10... Qc7 {[%clk 0:02:33.1]} 11. Bg5
{[%clk 0:02:47]} 11... Nbd7 {[%clk 0:02:32.2]} 12. Nbd2 {[%clk 0:02:45.3]} 12...
b6 {[%clk 0:02:30.4]} 13. Rfe1 {[%clk 0:02:23.4]} 13... Bb7 {[%clk 0:02:28.2]}
14. Bb3 {[%clk 0:02:23.2]} 14... Rac8 {[%clk 0:02:17.3]} 15. Bc2 {[%clk
0:02:22.1]} 15... Be7 {[%clk 0:02:08.3]} 16. Bh4 {[%clk 0:02:11.6]} 16... Qc6
{[%clk 0:02:01.8]} 17. Ne4 {[%clk 0:01:54.4]} 17... Rfe8 {[%clk 0:01:56.3]} 18.
Rad1 {[%clk 0:01:49.7]} 18... h6 {[%clk 0:01:35]} 19. Nd4 {[%clk 0:01:41.4]}
19... Qc4 {[%clk 0:01:09.7]} 20. Bd3 {[%clk 0:01:27.1]} 20... Qd5 {[%clk
0:01:02.9]} 21. Nb5 {[%clk 0:00:59.6]} 21... Nxe4 {[%clk 0:00:53.7]} 22. Bxe4
{[%clk 0:00:59.8]} 22... Qxe4 {[%clk 0:00:53.9]} 23. Qxe4 {[%clk 0:01:00]} 23...
Bxe4 {[%clk 0:00:53.9]} 24. Rxd7 {[%clk 0:00:43.9]} 24... Bc6 {[%clk 0:00:41.2]}
25. Rxe7 {[%clk 0:00:42.4]} 25... Rxe7 {[%clk 0:00:40.4]} 26. Bxe7 {[%clk
0:00:42]} 26... Bxb5 {[%clk 0:00:40.7]} 27. Rd1 {[%clk 0:00:42.7]} 27... f6
{[%clk 0:00:32.5]} 1/2-1/2

[Event "*** Titled Tuesday Blitz"]
[Site "Chess.com"]
[Date "2021.03.30"]
[Round "5"]
[White "dpopadic"]
[Black "MikeSailer"]
[Result "1-0"]
[WhiteElo "2309"]
[BlackElo "2119"]
[TimeControl "180+1"]
[EndTime "10:54:17 PDT"]
[Termination "dpopadic won by resignation"]

1. e4 {[%clk 0:03:00.9]} 1... d5 {[%clk 0:02:57.3]} 2. exd5 {[%clk 0:02:59.5]}
2... Qxd5 {[%clk 0:02:53.8]} 3. Nc3 {[%clk 0:02:58.6]} 3... Qd6 {[%clk
0:02:51.9]} 4. d4 {[%clk 0:02:58.3]} 4... Nf6 {[%clk 0:02:46.8]} 5. Nf3 {[%clk
0:02:58]} 5... c6 {[%clk 0:02:46.2]} 6. h3 {[%clk 0:02:57.5]} 6... Bf5 {[%clk
0:02:42.9]} 7. Bc4 {[%clk 0:02:57.2]} 7... e6 {[%clk 0:02:43.4]} 8. Qe2 {[%clk
0:02:56.9]} 8... Be7 {[%clk 0:02:44]} 9. Bg5 {[%clk 0:02:45.9]} 9... Nbd7 {[%clk
0:02:43.5]} 10. O-O-O {[%clk 0:02:44.2]} 10... O-O-O {[%clk 0:02:43.5]} 11. Ne5
{[%clk 0:02:36.9]} 11... Rhf8 {[%clk 0:02:34.9]} 12. Bf4 {[%clk 0:02:34.4]}
12... Qb4 {[%clk 0:02:34.2]} 13. Bb3 {[%clk 0:02:33.3]} 13... Nxe5 {[%clk
0:02:31.9]} 14. Bxe5 {[%clk 0:02:30.5]} 14... Bd6 {[%clk 0:02:22]} 15. g4 {[%clk
0:02:26.9]} 15... Bg6 {[%clk 0:02:19.9]} 16. f3 {[%clk 0:01:49.4]} 16... Bxe5
{[%clk 0:02:14.2]} 17. dxe5 {[%clk 0:01:49.1]} 17... Nd5 {[%clk 0:02:14.6]} 18.
Ne4 {[%clk 0:01:33]} 18... Bxe4 {[%clk 0:02:10.7]} 19. fxe4 {[%clk 0:01:32.8]}
19... Nf4 {[%clk 0:01:56.8]} 20. Qe3 {[%clk 0:01:30.3]} 20... Ng6 {[%clk
0:01:54.2]} 21. Qxa7 {[%clk 0:01:29.6]} 21... Nxe5 {[%clk 0:01:45.1]} 22. Qe3
{[%clk 0:01:13.6]} 22... Rxd1+ {[%clk 0:01:20.4]} 23. Rxd1 {[%clk 0:01:12]}
23... Rd8 {[%clk 0:01:21.2]} 24. Rxd8+ {[%clk 0:01:01.9]} 24... Kxd8 {[%clk
0:01:21.5]} 25. a3 {[%clk 0:01:01.8]} 25... Qe7 {[%clk 0:01:09.4]} 26. Qd4+
{[%clk 0:00:56.1]} 26... Nd7 {[%clk 0:01:07.2]} 27. Qxg7 {[%clk 0:00:55.7]}
27... Qh4 {[%clk 0:00:56.2]} 28. Kb1 {[%clk 0:00:51.8]} 28... Qe1+ {[%clk
0:00:54.2]} 29. Ka2 {[%clk 0:00:50.9]} 29... Qxe4 {[%clk 0:00:53.4]} 30. Qxf7
{[%clk 0:00:48.9]} 30... Nc5 {[%clk 0:00:42.5]} 31. Qf8+ {[%clk 0:00:48.9]}
31... Kc7 {[%clk 0:00:41.2]} 32. Qxc5 {[%clk 0:00:48.6]} 1-0

[Event "*** Titled Tuesday Blitz"]
[Site "Chess.com"]
[Date "2021.03.30"]
[Round "5"]
[White "DanielNaroditsky"]
[Black "exoticprincess"]
[Result "1-0"]
[WhiteElo "3043"]
[BlackElo "2857"]
[TimeControl "180+1"]
[EndTime "10:54:22 PDT"]
[Termination "DanielNaroditsky won by checkmate"]

1. d4 {[%clk 0:03:00.4]} 1... d5 {[%clk 0:02:52.9]} 2. c4 {[%clk 0:03:00.6]}
2... c6 {[%clk 0:02:46.6]} 3. Nc3 {[%clk 0:03:01.2]} 3... Nf6 {[%clk 0:02:42.5]}
4. Nf3 {[%clk 0:03:01.5]} 4... dxc4 {[%clk 0:02:38.4]} 5. a4 {[%clk 0:03:00.7]}
5... a5 {[%clk 0:02:37.8]} 6. e3 {[%clk 0:02:57.5]} 6... Bg4 {[%clk 0:02:37.6]}
7. Bxc4 {[%clk 0:02:57.4]} 7... e6 {[%clk 0:02:38.2]} 8. h3 {[%clk 0:02:57.6]}
8... Bh5 {[%clk 0:02:37.7]} 9. O-O {[%clk 0:02:57.1]} 9... Nbd7 {[%clk
0:02:36.9]} 10. Be2 {[%clk 0:02:50.8]} 10... Be7 {[%clk 0:02:33.9]} 11. e4
{[%clk 0:02:50.8]} 11... O-O {[%clk 0:02:33.3]} 12. Be3 {[%clk 0:02:50.8]} 12...
Bg6 {[%clk 0:02:30.7]} 13. Bd3 {[%clk 0:02:47]} 13... Re8 {[%clk 0:02:16.9]} 14.
Qc2 {[%clk 0:02:35.8]} 14... Rc8 {[%clk 0:02:12.6]} 15. Rad1 {[%clk 0:02:34.9]}
15... Qc7 {[%clk 0:02:00.8]} 16. Rfe1 {[%clk 0:02:34.7]} 16... h6 {[%clk
0:01:54.1]} 17. Qc1 {[%clk 0:02:26.8]} 17... Nf8 {[%clk 0:01:19.8]} 18. Ne5
{[%clk 0:02:17.8]} 18... Bh7 {[%clk 0:01:17.9]} 19. Nc4 {[%clk 0:02:16.8]} 19...
Bb4 {[%clk 0:01:12.1]} 20. Bf4 {[%clk 0:02:11.9]} 20... Qe7 {[%clk 0:01:11.6]}
21. Bc2 {[%clk 0:02:06.2]} 21... N6d7 {[%clk 0:00:59]} 22. Re3 {[%clk
0:02:04.3]} 22... Ng6 {[%clk 0:00:53.1]} 23. Bh2 {[%clk 0:02:03.1]} 23... e5
{[%clk 0:00:53.3]} 24. d5 {[%clk 0:02:02.7]} 24... Nf4 {[%clk 0:00:50.7]} 25.
Bxf4 {[%clk 0:01:54.6]} 25... exf4 {[%clk 0:00:50.4]} 26. Rf3 {[%clk 0:01:54.8]}
26... Ne5 {[%clk 0:00:38.1]} 27. Nxe5 {[%clk 0:01:51.8]} 27... Qxe5 {[%clk
0:00:39]} 28. Qxf4 {[%clk 0:01:48.7]} 28... Qxf4 {[%clk 0:00:37.4]} 29. Rxf4
{[%clk 0:01:49.6]} 29... cxd5 {[%clk 0:00:31.1]} 30. Rxd5 {[%clk 0:01:47.8]}
30... Bxc3 {[%clk 0:00:31.3]} 31. bxc3 {[%clk 0:01:48.4]} 31... Rxc3 {[%clk
0:00:32]} 32. Bd3 {[%clk 0:01:48.9]} 32... Bg6 {[%clk 0:00:27.4]} 33. f3 {[%clk
0:01:47.4]} 33... Rec8 {[%clk 0:00:21.4]} 34. h4 {[%clk 0:01:38.3]} 34... Ra3
{[%clk 0:00:20.3]} 35. h5 {[%clk 0:01:37.7]} 35... Bh7 {[%clk 0:00:18.9]} 36.
Rd7 {[%clk 0:01:31.2]} 36... Rf8 {[%clk 0:00:08.9]} 37. Bc4 {[%clk 0:01:28.4]}
37... Rxa4 {[%clk 0:00:07.7]} 38. Rfxf7 {[%clk 0:01:27.1]} 38... Rxf7 {[%clk
0:00:07.2]} 39. Rd8# {[%clk 0:01:26.9]} 1-0

[Event "*** Titled Tuesday Blitz"]
[Site "Chess.com"]
[Date "2021.03.30"]
[Round "5"]
[White "AlexSuv"]
[Black "Limelight2727"]
[Result "0-1"]
[WhiteElo "2543"]
[BlackElo "2358"]
[TimeControl "180+1"]
[EndTime "10:54:22 PDT"]
[Termination "Limelight2727 won by resignation"]

1. d4 {[%clk 0:03:00.9]} 1... Nf6 {[%clk 0:02:59.3]} 2. c4 {[%clk 0:02:59.9]}
2... e6 {[%clk 0:02:58]} 3. Nc3 {[%clk 0:02:58.5]} 3... Bb4 {[%clk 0:02:58.5]}
4. e3 {[%clk 0:02:56.4]} 4... Ne4 {[%clk 0:02:58]} 5. Ne2 {[%clk 0:02:49.9]}
5... b6 {[%clk 0:02:55.9]} 6. f3 {[%clk 0:02:47.9]} 6... Nxc3 {[%clk 0:02:51.1]}
7. bxc3 {[%clk 0:02:48.8]} 7... Be7 {[%clk 0:02:50.7]} 8. e4 {[%clk 0:02:43.3]}
8... Bb7 {[%clk 0:02:50.8]} 9. Ng3 {[%clk 0:02:42.8]} 9... c5 {[%clk 0:02:49.6]}
10. d5 {[%clk 0:02:41.7]} 10... d6 {[%clk 0:02:46.8]} 11. Bd3 {[%clk 0:02:40]}
11... Bg5 {[%clk 0:02:40.9]} 12. f4 {[%clk 0:02:39.3]} 12... Bh4 {[%clk
0:02:40.9]} 13. O-O {[%clk 0:02:39]} 13... O-O {[%clk 0:02:37.8]} 14. Qg4 {[%clk
0:02:21.7]} 14... Bxg3 {[%clk 0:01:56.8]} 15. Qxg3 {[%clk 0:02:15.5]} 15... f5
{[%clk 0:01:56.2]} 16. Re1 {[%clk 0:02:00.3]} 16... fxe4 {[%clk 0:01:50.6]} 17.
Bxe4 {[%clk 0:01:58]} 17... exd5 {[%clk 0:01:51]} 18. Bxd5+ {[%clk 0:01:52.8]}
18... Bxd5 {[%clk 0:01:50.3]} 19. cxd5 {[%clk 0:01:53.7]} 19... Nd7 {[%clk
0:01:46.4]} 20. c4 {[%clk 0:01:54]} 20... Qf6 {[%clk 0:01:30.9]} 21. Be3 {[%clk
0:01:54.1]} 21... Rae8 {[%clk 0:01:28.2]} 22. a4 {[%clk 0:01:44.8]} 22... Re4
{[%clk 0:01:27.7]} 23. Rac1 {[%clk 0:01:36.5]} 23... Rfe8 {[%clk 0:01:23.9]} 24.
Bf2 {[%clk 0:01:34.1]} 24... Rxe1+ {[%clk 0:01:02.9]} 25. Bxe1 {[%clk 0:01:35]}
25... Qb2 {[%clk 0:00:50]} 26. Qc3 {[%clk 0:01:26.8]} 26... Qxc3 {[%clk
0:00:36.7]} 27. Bxc3 {[%clk 0:01:27.7]} 27... Re4 {[%clk 0:00:36.5]} 28. Bd2
{[%clk 0:01:28.1]} 28... Rd4 {[%clk 0:00:33.4]} 29. Be3 {[%clk 0:01:27.8]} 29...
Rd3 {[%clk 0:00:33.8]} 30. Kf2 {[%clk 0:01:26.7]} 30... Ra3 {[%clk 0:00:34.1]}
31. f5 {[%clk 0:01:19]} 31... Rxa4 {[%clk 0:00:33.6]} 32. Bf4 {[%clk 0:01:19.4]}
32... Nf6 {[%clk 0:00:31.2]} 33. Re1 {[%clk 0:01:08.3]} 33... Rxc4 {[%clk
0:00:29.6]} 34. Bxd6 {[%clk 0:01:08.5]} 34... Ne4+ {[%clk 0:00:29.2]} 35. Rxe4
{[%clk 0:01:04.7]} 35... Rxe4 {[%clk 0:00:30.1]} 36. Bc7 {[%clk 0:01:02.9]}
36... Rd4 {[%clk 0:00:30.1]} 37. d6 {[%clk 0:01:03.4]} 37... Kf7 {[%clk
0:00:26.9]} 0-1

[Event "*** Titled Tuesday Blitz"]
[Site "Chess.com"]
[Date "2021.03.30"]
[Round "5"]
[White "TosicSrecko"]
[Black "Bhagya_2312"]
[Result "1-0"]
[WhiteElo "2316"]
[BlackElo "2157"]
[TimeControl "180+1"]
[EndTime "10:54:24 PDT"]
[Termination "TosicSrecko won by resignation"]

1. d4 {[%clk 0:03:00.9]} 1... f5 {[%clk 0:02:56.7]} 2. e4 {[%clk 0:02:58.4]}
2... fxe4 {[%clk 0:02:55.5]} 3. Nc3 {[%clk 0:02:58.5]} 3... Nf6 {[%clk 0:02:55]}
4. Bg5 {[%clk 0:02:58.9]} 4... c6 {[%clk 0:02:54.5]} 5. f3 {[%clk 0:02:55.2]}
5... d5 {[%clk 0:02:54.4]} 6. fxe4 {[%clk 0:02:50.4]} 6... dxe4 {[%clk
0:02:52.6]} 7. Bc4 {[%clk 0:02:45.8]} 7... Bf5 {[%clk 0:02:50.2]} 8. Nge2 {[%clk
0:02:40.9]} 8... Nbd7 {[%clk 0:02:46.3]} 9. O-O {[%clk 0:02:34.8]} 9... e6
{[%clk 0:02:39.6]} 10. Nf4 {[%clk 0:02:14.9]} 10... Qe7 {[%clk 0:01:42.3]} 11.
h3 {[%clk 0:02:11]} 11... Nb6 {[%clk 0:01:37.7]} 12. Bb3 {[%clk 0:01:52.6]}
12... O-O-O {[%clk 0:01:17.1]} 13. g4 {[%clk 0:01:47.7]} 13... Bg6 {[%clk
0:01:16.2]} 14. Nxe6 {[%clk 0:01:43.8]} 14... Nbd5 {[%clk 0:01:10.2]} 15. Nxd8
{[%clk 0:01:40.7]} 15... Qxd8 {[%clk 0:01:10.3]} 16. Nxd5 {[%clk 0:01:19.4]}
16... cxd5 {[%clk 0:01:08.5]} 17. c4 {[%clk 0:01:19.9]} 17... Be7 {[%clk
0:01:01.9]} 18. Bf4 {[%clk 0:01:17]} 18... b6 {[%clk 0:00:54.9]} 19. cxd5 {[%clk
0:01:16.1]} 19... Nxd5 {[%clk 0:00:54.4]} 20. Be5 {[%clk 0:01:10]} 20... Kb7
{[%clk 0:00:46]} 21. Rc1 {[%clk 0:01:03.6]} 21... Ne3 {[%clk 0:00:38]} 22. Qe2
{[%clk 0:00:53.4]} 22... Nxf1 {[%clk 0:00:36.4]} 23. Qxf1 {[%clk 0:00:51.9]}
23... Bd6 {[%clk 0:00:33.1]} 24. Bd5+ {[%clk 0:00:49.1]} 24... Kb8 {[%clk
0:00:23.7]} 25. Qa6 {[%clk 0:00:49.5]} 1-0

[Event "*** Titled Tuesday Blitz"]
[Site "Chess.com"]
[Date "2021.03.30"]
[Round "5"]
[White "Perecke"]
[Black "gxbg2000"]
[Result "1-0"]
[WhiteElo "2301"]
[BlackElo "1908"]
[TimeControl "180+1"]
[EndTime "10:54:27 PDT"]
[Termination "Perecke won by resignation"]

1. e4 {[%clk 0:03:00.9]} 1... e5 {[%clk 0:02:20.7]} 2. Nf3 {[%clk 0:02:50.1]}
2... Nc6 {[%clk 0:02:18.8]} 3. d4 {[%clk 0:02:49.2]} 3... exd4 {[%clk
0:02:15.2]} 4. Bc4 {[%clk 0:02:48.8]} 4... Be7 {[%clk 0:02:14.4]} 5. O-O {[%clk
0:02:47.4]} 5... d6 {[%clk 0:02:14.6]} 6. Nxd4 {[%clk 0:02:46.8]} 6... Nf6
{[%clk 0:02:14.5]} 7. Nc3 {[%clk 0:02:46.6]} 7... O-O {[%clk 0:02:13.1]} 8. h3
{[%clk 0:02:45]} 8... Ne5 {[%clk 0:02:08.3]} 9. Bb3 {[%clk 0:02:44.7]} 9... a6
{[%clk 0:02:06.2]} 10. Be3 {[%clk 0:02:44.1]} 10... b5 {[%clk 0:02:05.5]} 11. f4
{[%clk 0:02:42.2]} 11... Ng6 {[%clk 0:02:03.8]} 12. Bf2 {[%clk 0:02:42.1]} 12...
c5 {[%clk 0:02:03.3]} 13. Nc6 {[%clk 0:02:40]} 13... Qc7 {[%clk 0:02:02.7]} 14.
Nxe7+ {[%clk 0:02:39]} 14... Qxe7 {[%clk 0:02:02.7]} 15. Nd5 {[%clk 0:01:54.7]}
15... Nxd5 {[%clk 0:02:01.2]} 16. Bxd5 {[%clk 0:01:55.6]} 16... Ra7 {[%clk
0:01:58.3]} 17. e5 {[%clk 0:01:49.3]} 17... Rd7 {[%clk 0:01:40.4]} 18. exd6
{[%clk 0:01:45.9]} 18... Qxd6 {[%clk 0:01:36.1]} 19. Bf3 {[%clk 0:01:45.8]}
19... Qxf4 {[%clk 0:01:32.7]} 20. Qe2 {[%clk 0:01:44.5]} 20... Re7 {[%clk
0:01:29.8]} 21. Qd3 {[%clk 0:01:41.2]} 21... c4 {[%clk 0:01:25.6]} 22. Qa3
{[%clk 0:01:41.1]} 22... Re6 {[%clk 0:01:17.9]} 23. Rad1 {[%clk 0:01:35.8]}
23... Qc7 {[%clk 0:01:06.8]} 24. Bc5 {[%clk 0:01:32.9]} 24... Rfe8 {[%clk
0:01:03]} 25. Bd5 {[%clk 0:01:31.9]} 25... Re2 {[%clk 0:00:54.6]} 26. Rxf7
{[%clk 0:01:20.2]} 26... Re1+ {[%clk 0:00:45.5]} 27. Rxe1 {[%clk 0:01:15]} 27...
Rxe1+ {[%clk 0:00:45]} 28. Rf1+ {[%clk 0:01:14.6]} 28... Be6 {[%clk 0:00:42]}
29. Rxe1 {[%clk 0:01:04.2]} 29... Bxd5 {[%clk 0:00:41.9]} 30. Bd6 {[%clk
0:00:58.3]} 30... Qc6 {[%clk 0:00:37.3]} 31. Qc5 {[%clk 0:00:54.5]} 31... Bxg2
{[%clk 0:00:34.2]} 32. Qxc6 {[%clk 0:00:54.4]} 32... Bxc6 {[%clk 0:00:34.1]} 33.
Bg3 {[%clk 0:00:49.4]} 33... Kf7 {[%clk 0:00:34]} 34. Rd1 {[%clk 0:00:48.8]}
34... Ke6 {[%clk 0:00:33]} 35. Rd6+ {[%clk 0:00:48.6]} 1-0

[Event "*** Titled Tuesday Blitz"]
[Site "Chess.com"]
[Date "2021.03.30"]
[Round "5"]
[White "Aleksey_Sorokin"]
[Black "Pelopidass"]
[Result "1-0"]
[WhiteElo "2763"]
[BlackElo "2570"]
[TimeControl "180+1"]
[EndTime "10:54:30 PDT"]
[Termination "Aleksey_Sorokin won by resignation"]

1. Nf3 {[%clk 0:03:00.9]} 1... Nf6 {[%clk 0:02:59.7]} 2. g3 {[%clk 0:03:01.8]}
2... g6 {[%clk 0:02:58.8]} 3. Bg2 {[%clk 0:03:02.7]} 3... Bg7 {[%clk 0:02:59.4]}
4. O-O {[%clk 0:03:03.6]} 4... O-O {[%clk 0:03:00]} 5. b3 {[%clk 0:03:04.2]}
5... d5 {[%clk 0:02:59.2]} 6. Bb2 {[%clk 0:03:04.2]} 6... c5 {[%clk 0:02:59.8]}
7. c4 {[%clk 0:03:04]} 7... d4 {[%clk 0:02:57.5]} 8. e3 {[%clk 0:03:04.2]} 8...
Nc6 {[%clk 0:02:57.2]} 9. exd4 {[%clk 0:03:04.7]} 9... cxd4 {[%clk 0:02:57.9]}
10. Na3 {[%clk 0:03:04.9]} 10... Bg4 {[%clk 0:02:43.3]} 11. h3 {[%clk
0:03:03.5]} 11... Bxf3 {[%clk 0:02:42.4]} 12. Qxf3 {[%clk 0:03:03.7]} 12... e5
{[%clk 0:02:39.7]} 13. d3 {[%clk 0:03:02.8]} 13... Nd7 {[%clk 0:02:36.1]} 14.
Rae1 {[%clk 0:02:58.2]} 14... Nc5 {[%clk 0:02:31.5]} 15. Nc2 {[%clk 0:02:54]}
15... Re8 {[%clk 0:02:21.7]} 16. Ba3 {[%clk 0:02:52.7]} 16... Bf8 {[%clk
0:02:04.3]} 17. b4 {[%clk 0:02:42.2]} 17... Nd7 {[%clk 0:01:56.3]} 18. b5 {[%clk
0:02:40.8]} 18... Na5 {[%clk 0:01:56.2]} 19. Bc1 {[%clk 0:02:37]} 19... Rc8
{[%clk 0:01:52.7]} 20. Bd2 {[%clk 0:02:36.3]} 20... Nc5 {[%clk 0:01:49]} 21. Nb4
{[%clk 0:02:20.1]} 21... e4 {[%clk 0:01:47.6]} 22. Qf4 {[%clk 0:02:11.2]} 22...
Bd6 {[%clk 0:01:29.6]} 23. Qh6 {[%clk 0:02:02.3]} 23... Bf8 {[%clk 0:01:26.7]}
24. Qf4 {[%clk 0:02:02.2]} 24... Bd6 {[%clk 0:01:26.8]} 25. Qg4 {[%clk 0:01:55]}
25... h5 {[%clk 0:01:23.4]} 26. Qd1 {[%clk 0:01:54.5]} 26... b6 {[%clk
0:01:15.6]} 27. Bc1 {[%clk 0:01:51.5]} 27... Nxd3 {[%clk 0:01:12.4]} 28. Nxd3
{[%clk 0:01:51]} 28... exd3 {[%clk 0:01:13.3]} 29. Qxd3 {[%clk 0:01:48.4]} 29...
Rxe1 {[%clk 0:01:10.6]} 30. Rxe1 {[%clk 0:01:48.2]} 30... Bb4 {[%clk 0:01:11.2]}
31. Bd5 {[%clk 0:01:41.1]} 31... Qf6 {[%clk 0:01:06.3]} 32. Re4 {[%clk
0:01:33.5]} 32... Bd6 {[%clk 0:01:04.2]} 33. Rxd4 {[%clk 0:01:28.3]} 33... Re8
{[%clk 0:00:53.9]} 34. Kg2 {[%clk 0:01:28.2]} 34... Re1 {[%clk 0:00:39.2]} 35.
Be3 {[%clk 0:01:27.6]} 35... h4 {[%clk 0:00:27.7]} 36. Rxh4 {[%clk 0:01:23.2]}
36... Qa1 {[%clk 0:00:18.7]} 37. Bd4 {[%clk 0:01:16.7]} 37... Rg1+ {[%clk
0:00:19.2]} 38. Kh2 {[%clk 0:01:16]} 38... Bxg3+ {[%clk 0:00:15]} 39. fxg3
{[%clk 0:01:16]} 39... Rh1+ {[%clk 0:00:10.7]} 40. Bxh1 {[%clk 0:01:15.2]} 1-0

[Event "*** Titled Tuesday Blitz"]
[Site "Chess.com"]
[Date "2021.03.30"]
[Round "5"]
[White "Michaelson_11"]
[Black "Khnykin_Nikolay"]
[Result "1-0"]
[WhiteElo "2241"]
[BlackElo "2029"]
[TimeControl "180+1"]
[EndTime "10:54:33 PDT"]
[Termination "Michaelson_11 won on time"]

1. e4 {[%clk 0:03:00]} 1... c5 {[%clk 0:02:58.4]} 2. Nf3 {[%clk 0:02:59]} 2...
e6 {[%clk 0:02:55.6]} 3. d4 {[%clk 0:02:59.5]} 3... cxd4 {[%clk 0:02:53]} 4.
Nxd4 {[%clk 0:03:00.4]} 4... Nf6 {[%clk 0:02:52.8]} 5. Nc3 {[%clk 0:03:00.8]}
5... d6 {[%clk 0:02:51.4]} 6. g4 {[%clk 0:02:59.9]} 6... h6 {[%clk 0:02:47.4]}
7. Rg1 {[%clk 0:02:59]} 7... Be7 {[%clk 0:02:45.5]} 8. h4 {[%clk 0:02:53.8]}
8... Nc6 {[%clk 0:02:33.7]} 9. Be3 {[%clk 0:02:43.2]} 9... Nxd4 {[%clk
0:02:24.8]} 10. Qxd4 {[%clk 0:02:32.1]} 10... e5 {[%clk 0:02:18.6]} 11. Qd2
{[%clk 0:02:25.3]} 11... Nxg4 {[%clk 0:02:16.1]} 12. Nd5 {[%clk 0:02:23.7]}
12... Bxh4 {[%clk 0:02:11.3]} 13. O-O-O {[%clk 0:02:23.6]} 13... Nxe3 {[%clk
0:01:49.4]} 14. Nxe3 {[%clk 0:02:10.1]} 14... Bg5 {[%clk 0:01:25.8]} 15. Bb5+
{[%clk 0:01:59.3]} 15... Bd7 {[%clk 0:01:23.1]} 16. Qxd6 {[%clk 0:01:48.9]}
16... Bxb5 {[%clk 0:00:14.2]} 17. Qxe5+ {[%clk 0:01:38.7]} 17... Qe7 {[%clk
0:00:12.2]} 18. Qxb5+ {[%clk 0:01:38.4]} 18... Kf8 {[%clk 0:00:11.9]} 19. Rd7
{[%clk 0:01:16.2]} 19... Qe6 {[%clk 0:00:08.3]} 20. Qxb7 {[%clk 0:01:12.5]}
20... Re8 {[%clk 0:00:05]} 21. Kb1 {[%clk 0:01:09.7]} 21... Kg8 {[%clk
0:00:03.6]} 22. Nd5 {[%clk 0:00:45.5]} 1-0

[Event "*** Titled Tuesday Blitz"]
[Site "Chess.com"]
[Date "2021.03.30"]
[Round "5"]
[White "KubaGepard"]
[Black "BeyondMadness"]
[Result "1-0"]
[WhiteElo "2407"]
[BlackElo "2278"]
[TimeControl "180+1"]
[EndTime "10:54:36 PDT"]
[Termination "KubaGepard won on time"]

1. e4 {[%clk 0:03:00.9]} 1... c5 {[%clk 0:02:58.5]} 2. Nf3 {[%clk 0:03:00.4]}
2... d6 {[%clk 0:02:57.1]} 3. d4 {[%clk 0:03:00.5]} 3... cxd4 {[%clk 0:02:57.1]}
4. Nxd4 {[%clk 0:03:01.4]} 4... Nf6 {[%clk 0:02:57.2]} 5. Nc3 {[%clk 0:03:01.8]}
5... a6 {[%clk 0:02:57.4]} 6. Be2 {[%clk 0:03:00.5]} 6... e6 {[%clk 0:02:57]} 7.
Be3 {[%clk 0:03:00]} 7... Be7 {[%clk 0:02:56.4]} 8. Qd2 {[%clk 0:02:59.2]} 8...
Qc7 {[%clk 0:02:51.2]} 9. g4 {[%clk 0:02:54.7]} 9... Nc6 {[%clk 0:02:48.9]} 10.
g5 {[%clk 0:02:50.6]} 10... Nd7 {[%clk 0:02:47.7]} 11. f4 {[%clk 0:02:50.9]}
11... b5 {[%clk 0:02:27.7]} 12. a3 {[%clk 0:02:39.4]} 12... Bb7 {[%clk 0:02:26]}
13. Rf1 {[%clk 0:02:34.2]} 13... Nxd4 {[%clk 0:02:06.9]} 14. Bxd4 {[%clk
0:02:31.1]} 14... e5 {[%clk 0:02:04.5]} 15. Be3 {[%clk 0:02:27.9]} 15... exf4
{[%clk 0:01:58.8]} 16. Bxf4 {[%clk 0:02:26.4]} 16... Ne5 {[%clk 0:01:56.2]} 17.
O-O-O {[%clk 0:02:03.3]} 17... Rc8 {[%clk 0:01:26.8]} 18. Kb1 {[%clk 0:02:00.4]}
18... O-O {[%clk 0:01:24.4]} 19. h4 {[%clk 0:01:51.7]} 19... Rfd8 {[%clk
0:01:02.6]} 20. h5 {[%clk 0:01:49.8]} 20... Nc4 {[%clk 0:00:54.7]} 21. Bxc4
{[%clk 0:01:48.6]} 21... Qxc4 {[%clk 0:00:55]} 22. Nd5 {[%clk 0:01:44.5]} 22...
Bxd5 {[%clk 0:00:52.6]} 23. exd5 {[%clk 0:01:44.2]} 23... Bf8 {[%clk 0:00:46.3]}
24. Qf2 {[%clk 0:01:34.6]} 24... Re8 {[%clk 0:00:36.7]} 25. Rd3 {[%clk
0:01:25.2]} 25... Qe4 {[%clk 0:00:26.6]} 26. Bd2 {[%clk 0:01:17.7]} 26... Re7
{[%clk 0:00:18.8]} 27. Bb4 {[%clk 0:01:15]} 27... Rd7 {[%clk 0:00:14.3]} 28. Rf3
{[%clk 0:01:10.7]} 28... Qxd5 {[%clk 0:00:13.1]} 29. g6 {[%clk 0:01:10.4]} 29...
hxg6 {[%clk 0:00:12.1]} 30. hxg6 {[%clk 0:01:10.2]} 30... f6 {[%clk 0:00:06.9]}
31. Rh3 {[%clk 0:01:08.5]} 31... Qe4 {[%clk 0:00:02.7]} 32. Rh8+ {[%clk
0:01:07]} 1-0